fUSD/lending_fUSD_20240428
["ID","MTS","AMOUNT","RATE_DAILY","PERIOD"]
[323777167,1714283454730,-4513.59,0.00020272,2]
[323777168,1714283454739,-1909.04,0.00020272,2]
[323777169,1714283454748,-500.0,0.00020272,2]
[323777170,1714283454757,-4793.11,0.00020272,2]
[323777171,1714283454766,-25371.34,0.00020272,2]
[323777172,1714283454775,-1432.61,0.00020272,2]
[323777173,1714283454788,-5589.71,0.00020272,2]
[323777174,1714283454798,-596.31,0.00020272,2]
[323777175,1714283454807,-13813.08,0.00020272,2]
[323777176,1714283454816,-500.0,0.00020272,2]
[323777177,1714283454825,-500.0,0.00020272,2]
[323777178,1714283454836,-685.47,0.00020272,2]
[323777179,1714283454845,-419.668711,0.00020272,2]
[323777180,1714283454855,-500.0,0.00020272,2]
[323777181,1714283454865,-7591.07,0.00020272,2]
[323777182,1714283454875,-1205.59,0.00020272,2]
[323777183,1714283454884,-419.668711,0.00020272,2]
[323777184,1714283454893,-62008.85,0.00020272,2]
[323777185,1714283454902,-1522.65,0.00020272,2]
[323777186,1714283454915,-2866.87,0.00020272,2]
[323777187,1714283454924,-151.0,0.00020272,2]
[323777188,1714283454933,-2531.99,0.00020272,2]
[323777189,1714283454942,-500.0,0.00020272,2]
[323777190,1714283454951,-500.0,0.00020272,2]
[323777191,1714283454962,-500.0,0.00020272,2]
[323777192,1714283454971,-2033.2,0.00020272,2]
[323777193,1714283454980,-1217.79,0.00020272,2]
[323777194,1714283454990,-888.71,0.00020272,2]
[323777195,1714283455000,-623.77,0.00020272,2]
[323777196,1714283455009,-629.99,0.00020272,2]
[323777197,1714283455018,-2569.4,0.00020272,2]
[323777198,1714283455027,-2341.16,0.00020272,2]
[323777199,1714283455036,-1286.54,0.00020272,2]
[323777200,1714283455046,-3417.8,0.00020272,2]
[323777201,1714283455056,-745.15,0.00020272,2]
[323777202,1714283455064,-500.0,0.00020272,2]
[323777203,1714283455074,-3177.45,0.00020272,2]
[323777204,1714283455084,-2150.97,0.00020272,2]
[323777205,1714283455092,-1827.18,0.00020272,2]
[323777206,1714283455102,-7330.76,0.00020272,2]
[323777207,1714283455114,-2734.73,0.00020272,2]
[323777208,1714283455123,-1456.91,0.00020272,2]
[323777209,1714283455132,-363.14005,0.00020272,2]
[323777210,1714283455141,-7802.54,0.00020272,2]
[323777211,1714283455150,-363.14005,0.00020272,2]
[323777212,1714283455159,-500.0,0.00020272,2]
[323777213,1714283455167,-151.0,0.00020272,2]
[323777214,1714283455176,-428.78005029,0.00020272,2]
[323777215,1714283455185,-3665.05,0.00020272,2]
[323777216,1714283455195,-1069.08,0.00020272,2]
[323777217,1714283455205,-575.59475423,0.00020272,2]
[323777218,1714283455214,-6427.56,0.00020272,2]
[323777219,1714283455223,-500.0,0.00020272,2]
[323777220,1714283455233,-3874.7,0.00020272,2]
[323777221,1714283455242,-500.0,0.00020272,2]
[323777222,1714283455251,-2233.7,0.00020272,2]
[323777223,1714283455260,-8948.66,0.00020272,2]
[323777224,1714283455270,-711.4,0.00020272,2]
[323777225,1714283455280,-1856.09,0.00020272,2]
[323777226,1714283455289,-2605.38,0.00020272,2]
[323777227,1714283455298,-501.83204989,0.00020272,2]
[323777228,1714283455308,-1806.54,0.00020272,2]
[323777229,1714283455317,-824.61,0.00020272,2]
[323777230,1714283455326,-4988.73,0.00020272,2]
[323777231,1714283455337,-500.0,0.00020272,2]
[323777232,1714283455348,-2918.88,0.00020272,2]
[323777233,1714283455357,-1983.67,0.00020272,2]
[323777234,1714283455367,-1673310.75548535,0.00020273,2]
[323777235,1714283455377,-807.54,0.00020273,2]
[323777236,1714283455399,-943.49,0.00020273,2]
[323777237,1714283455417,-500.0,0.00020273,2]
[323777238,1714283455437,-500.0,0.00020273,2]
[323777239,1714283455453,-500.0,0.00020273,2]
[323777240,1714283455472,-500.0,0.00020273,2]
[323777241,1714283455489,-524.1186867,0.00020273,2]
[323777242,1714283455505,-500.0,0.00020273,2]
[323777243,1714283455530,-1253.98,0.00020273,2]
[323777244,1714283455546,-1533.17,0.00020273,2]
[323777245,1714283455563,-500.0,0.00020273,2]
[323777246,1714283455583,-500.0,0.00020273,2]
[323777247,1714283455599,-545.80418991,0.00020273,2]
[323777248,1714283455613,-500.0,0.00020273,2]
[323777249,1714283455629,-515.12062385,0.00020273,2]
[323777250,1714283455648,-525.23,0.00020273,2]
[323777251,1714283455661,-500.0,0.00020273,2]
[323777252,1714283455677,-500.0,0.00020273,2]
[323777253,1714283455695,-500.0,0.00020273,2]
[323777254,1714283455711,-512.95540097,0.00020273,2]
[323777255,1714283455727,-987.31,0.00020273,2]
[323777256,1714283455742,-649.36,0.00020273,2]
[323777257,1714283455758,-500.0,0.00020273,2]
[323777258,1714283455778,-500.0,0.00020273,2]
[323777259,1714283455794,-500.0,0.00020273,2]
[323777260,1714283455807,-505.47649965,0.00020273,2]
[323777261,1714283455823,-500.0,0.00020273,2]
[323777262,1714283455837,-500.0,0.00020273,2]
[323777263,1714283455852,-992.81,0.00020273,2]
[323777264,1714283455867,-500.0,0.00020273,2]
[323777265,1714283455882,-500.0,0.00020273,2]
[323777266,1714283455897,-500.0,0.00020273,2]
[323777267,1714283455912,-500.0,0.00020273,2]
[323777268,1714283455927,-500.0,0.00020273,2]
[323777269,1714283455942,-475.79068552,0.00020273,2]
[323777270,1714283455956,-500.0,0.00020273,2]
[323777271,1714283455972,-500.0,0.00020273,2]
[323777272,1714283455986,-500.0,0.00020273,2]
[323777273,1714283456001,-500.0,0.00020273,2]
[323777274,1714283456016,-534.74603333,0.00020273,2]
[323777275,1714283456031,-500.0,0.00020273,2]
[323777276,1714283456046,-505.1732605,0.00020273,2]
[323777277,1714283456063,-500.0,0.00020273,2]
[323777278,1714283456078,-602.3,0.00020273,2]
[323777279,1714283456093,-1123.97,0.00020273,2]
[323777280,1714283456109,-500.0,0.00020273,2]
[323777281,1714283456125,-545.04,0.00020273,2]
[323777282,1714283456141,-500.0,0.00020273,2]
[323777283,1714283456156,-500.0,0.00020273,2]
[323777284,1714283456170,-512.3,0.00020273,2]
[323777285,1714283456185,-542.44,0.00020273,2]
[323777286,1714283456200,-500.0,0.00020273,2]
[323777287,1714283456214,-500.0,0.00020273,2]
[323777288,1714283456228,-500.0,0.00020273,2]
[323777289,1714283456243,-500.0,0.00020273,2]
[323777290,1714283456257,-500.0,0.00020273,2]
[323777291,1714283456272,-531.49,0.00020273,2]
[323777292,1714283456287,-500.0,0.00020273,2]
[323777293,1714283456301,-799.3,0.00020273,2]
[323777294,1714283456316,-504.00646207,0.00020273,2]
[323777295,1714283456332,-500.0,0.00020273,2]
[323777296,1714283456347,-1842.91,0.00020273,2]
[323777297,1714283456362,-500.0,0.00020273,2]
[323777298,1714283456376,-462.95391386,0.00020273,2]
[323777299,1714283456390,-500.0,0.00020273,2]
[323777300,1714283456406,-576.5,0.00020273,2]
[323777301,1714283456421,-500.0,0.00020273,2]
[323777302,1714283456437,-500.0,0.00020273,2]
[323777303,1714283456453,-501.67,0.00020273,2]
[323777304,1714283456469,-516.68,0.00020273,2]
[323777305,1714283456483,-500.0,0.00020273,2]
[323777306,1714283456498,-500.0,0.00020273,2]
[323777307,1714283456514,-500.0,0.00020273,2]
[323777308,1714283456530,-500.0,0.00020273,2]
[323777309,1714283456544,-509.23,0.00020273,2]
[323777310,1714283456559,-841.56,0.00020273,2]
[323777311,1714283456574,-174.95164446,0.00020273,2]
[323777312,1714283456589,-500.0,0.00020273,2]
[323777313,1714283456603,-500.0,0.00020273,2]
[323777314,1714283456619,-500.0,0.00020273,2]
[323777315,1714283456632,-500.0,0.00020273,2]
[323777316,1714283456648,-508.68,0.00020273,2]
[323777317,1714283456662,-500.0,0.00020273,2]
[323777318,1714283456678,-500.0,0.00020273,2]
[323777319,1714283456692,-500.0,0.00020273,2]
[323777320,1714283456707,-500.0,0.00020273,2]
[323777321,1714283456721,-500.0,0.00020273,2]
[323777322,1714283456735,-500.0,0.00020273,2]
[323777323,1714283456751,-1622.41,0.00020273,2]
[323777324,1714283456766,-500.0,0.00020273,2]
[323777325,1714283456782,-503.80766227,0.00020273,2]
[323777326,1714283456797,-500.0,0.00020273,2]
[323777327,1714283456812,-500.0,0.00020273,2]
[323777328,1714283456827,-500.0,0.00020273,2]
[323777329,1714283456841,-2321.23,0.00020273,2]
[323777330,1714283456856,-500.0,0.00020273,2]
[323777331,1714283456872,-576.48,0.00020273,2]
[323777332,1714283456887,-905.14,0.00020273,2]
[323777333,1714283456904,-1463.22,0.00020273,2]
[323777334,1714283456919,-546.4,0.00020273,2]
[323777335,1714283456933,-603.56385375,0.00020273,2]
[323777336,1714283456948,-569.02,0.00020273,2]
[323777337,1714283456964,-500.0,0.00020273,2]
[323777338,1714283456976,-560.27,0.00020273,2]
[323777339,1714283456985,-500.0,0.00020273,2]
[323777340,1714283456996,-500.0,0.00020273,2]
[323777341,1714283457005,-517.28384568,0.00020273,2]
[323777342,1714283457014,-500.0,0.00020273,2]
[323777343,1714283457024,-551.53,0.00020273,2]
[323777344,1714283457034,-500.0,0.00020273,2]
[323777345,1714283457044,-500.0,0.00020273,2]
[323777346,1714283457054,-1000.16,0.00020273,2]
[323777347,1714283457065,-500.0,0.00020273,2]
[323777348,1714283457075,-500.0,0.00020273,2]
[323777349,1714283457085,-500.0,0.00020273,2]
[323777350,1714283457422,-500.0,0.00020273,2]
[323777351,1714283457441,-500.0,0.00020273,2]
[323777352,1714283457450,-831.55,0.00020273,2]
[323777353,1714283457459,-500.0,0.00020273,2]
[323777354,1714283457469,-2014.6,0.00020273,2]
[323777355,1714283457479,-500.0,0.00020273,2]
[323777356,1714283457489,-500.0,0.00020273,2]
[323777357,1714283457500,-500.0,0.00020273,2]
[323777358,1714283457511,-500.0,0.00020273,2]
[323777359,1714283457524,-719.76,0.00020273,2]
[323777360,1714283457533,-1155.49,0.00020273,2]
[323777361,1714283457544,-500.0,0.00020273,2]
[323777362,1714283457555,-500.0,0.00020273,2]
[323777363,1714283457566,-500.0,0.00020273,2]
[323777364,1714283457577,-2139.18,0.00020273,2]
[323777365,1714283457589,-500.0,0.00020273,2]
[323777366,1714283457599,-500.21,0.00020273,2]
[323777367,1714283457609,-500.0,0.00020273,2]
[323777368,1714283457620,-1252.39,0.00020273,2]
[323777369,1714283457629,-538.21,0.00020273,2]
[323777370,1714283457640,-592.32,0.00020273,2]
[323777371,1714283457651,-500.0,0.00020273,2]
[323777372,1714283457661,-1945.64,0.00020273,2]
[323777373,1714283457671,-500.0,0.00020273,2]
[323777374,1714283457682,-648.28,0.00020273,2]
[323777375,1714283457692,-500.0,0.00020273,2]
[323777376,1714283457702,-500.0,0.00020273,2]
[323777377,1714283457712,-2873.09,0.00020273,2]
[323777378,1714283457721,-500.0,0.00020273,2]
[323777379,1714283457731,-707.54,0.00020273,2]
[323777380,1714283457741,-712.17,0.00020273,2]
[323777381,1714283457751,-500.83,0.00020273,2]
[323777382,1714283457762,-500.0,0.00020273,2]
[323777383,1714283457772,-500.0,0.00020273,2]
[323777384,1714283457782,-503.51235258,0.00020273,2]
[323777385,1714283457792,-500.0,0.00020273,2]
[323777386,1714283457803,-500.0,0.00020273,2]
[323777387,1714283457813,-2442.44,0.00020273,2]
[323777388,1714283457826,-988.99,0.00020273,2]
[323777389,1714283457836,-500.0,0.00020273,2]
[323777390,1714283457847,-1307.94,0.00020273,2]
[323777391,1714283457858,-500.0,0.00020273,2]
[323777392,1714283457870,-333.58148166,0.00020273,2]
[323777393,1714283457882,-500.0,0.00020273,2]
[323777394,1714283457891,-500.0,0.00020273,2]
[323777395,1714283457901,-502.96284396,0.00020273,2]
[323777396,1714283457912,-782.3,0.00020273,2]
[323777397,1714283457923,-582.16,0.00020273,2]
[323777398,1714283457934,-500.0,0.00020273,2]
[323777399,1714283457943,-298.6521715,0.00020273,2]
[323777400,1714283457955,-1116.72,0.00020273,2]
[323777401,1714283457965,-1285.36,0.00020273,2]
[323777402,1714283457978,-1039.7,0.00020273,2]
[323777403,1714283457988,-607.57,0.00020273,2]
[323777404,1714283457999,-500.0,0.00020273,2]
[323777405,1714283458009,-500.0,0.00020273,2]
[323777406,1714283458021,-686.55,0.00020273,2]
[323777407,1714283458031,-1297.52,0.00020273,2]
[323777408,1714283458041,-500.0,0.00020273,2]
[323777409,1714283458050,-500.0,0.00020273,2]
[323777410,1714283458059,-503.33,0.00020273,2]
[323777411,1714283458068,-500.0,0.00020273,2]
[323777412,1714283458078,-538.22,0.00020273,2]
[323777413,1714283458089,-572.32,0.00020273,2]
[323777414,1714283458099,-1607.84,0.00020273,2]
[323777415,1714283458109,-500.0,0.00020273,2]
[323777416,1714283458119,-1035.1,0.00020273,2]
[323777417,1714283458129,-507.0044034,0.00020273,2]
[323777418,1714283458141,-1572.24,0.00020273,2]
[323777419,1714283458151,-500.0,0.00020273,2]
[323777420,1714283458162,-500.0,0.00020273,2]
[323777421,1714283458171,-1439.75,0.00020273,2]
[323777422,1714283458181,-1874.24,0.00020273,2]
[323777423,1714283458192,-334.19233432,0.00020273,2]
[323777424,1714283458203,-698.33,0.00020273,2]
[323777425,1714283458213,-500.0,0.00020273,2]
[323777426,1714283458224,-500.0,0.00020273,2]
[323777427,1714283458234,-503.63686578,0.00020273,2]
[323777428,1714283458245,-1324.62,0.00020273,2]
[323777429,1714283458254,-500.0,0.00020273,2]
[323777430,1714283458264,-500.0,0.00020273,2]
[323777431,1714283458274,-569.45784343,0.00020273,2]
[323777432,1714283458284,-602.45,0.00020273,2]
[323777433,1714283458294,-1378.42,0.00020273,2]
[323777434,1714283458304,-1000.0,0.00020273,2]
[323777435,1714283458316,-500.0,0.00020273,2]
[323777436,1714283458326,-500.0,0.00020273,2]
[323777437,1714283458337,-500.0,0.00020273,2]
[323777438,1714283458349,-1816.57,0.00020273,2]
[323777439,1714283458358,-1095.47,0.00020273,2]
[323777440,1714283458367,-570.31,0.00020273,2]
[323777441,1714283458377,-1215.25,0.00020273,2]
[323777442,1714283458387,-500.0,0.00020273,2]
[323777443,1714283458397,-1501.52,0.00020273,2]
[323777444,1714283458407,-684.94,0.00020273,2]
[323777445,1714283458417,-500.0,0.00020273,2]
[323777446,1714283458427,-935.94,0.00020273,2]
[323777447,1714283458438,-542.95,0.00020273,2]
[323777448,1714283458448,-500.0,0.00020273,2]
[323777449,1714283458459,-502.30975076,0.00020273,2]
[323777450,1714283458469,-952.45,0.00020273,2]
[323777451,1714283458479,-503.13349403,0.00020273,2]
[323777452,1714283458488,-509.0819339,0.00020273,2]
[323777453,1714283458497,-500.0,0.00020273,2]
[323777454,1714283458506,-1125.7,0.00020273,2]
[323777455,1714283458519,-500.0,0.00020273,2]
[323777456,1714283458529,-500.0,0.00020273,2]
[323777457,1714283458540,-1243.16,0.00020273,2]
[323777458,1714283458550,-500.0,0.00020273,2]
[323777459,1714283458560,-814.0,0.00020273,2]
[323777460,1714283458571,-500.0,0.00020273,2]
[323777461,1714283458582,-500.0,0.00020273,2]
[323777462,1714283458593,-500.0,0.00020273,2]
[323777463,1714283458603,-505.03001767,0.00020273,2]
[323777464,1714283458614,-1564.63,0.00020273,2]
[323777465,1714283458624,-504.08012518,0.00020273,2]
[323777466,1714283458634,-500.0,0.00020273,2]
[323777467,1714283458644,-500.0,0.00020273,2]
[323777468,1714283458655,-500.0,0.00020273,2]
[323777469,1714283458665,-500.0,0.00020273,2]
[323777470,1714283458676,-710.16,0.00020273,2]
[323777471,1714283458686,-500.0,0.00020273,2]
[323777472,1714283458697,-500.0,0.00020273,2]
[323777473,1714283458707,-593.12,0.00020273,2]
[323777474,1714283458717,-1581.47,0.00020273,2]
[323777475,1714283458726,-500.0,0.00020273,2]
[323777476,1714283458736,-500.0,0.00020273,2]
[323777477,1714283458746,-500.0,0.00020273,2]
[323777478,1714283458756,-979.1,0.00020273,2]
[323777479,1714283458766,-504.9260311,0.00020273,2]
[323777480,1714283458776,-500.0,0.00020273,2]
[323777481,1714283458786,-1783.25,0.00020273,2]
[323777482,1714283458796,-500.0,0.00020273,2]
[323777483,1714283458807,-572.30115304,0.00020273,2]
[323777484,1714283458817,-500.0,0.00020273,2]
[323777485,1714283458827,-500.0,0.00020273,2]
[323777486,1714283458837,-500.0,0.00020273,2]
[323777487,1714283458846,-1898.03,0.00020273,2]
[323777488,1714283458855,-547.87733724,0.00020273,2]
[323777489,1714283458866,-1266.43,0.00020273,2]
[323777490,1714283458875,-1110.89,0.00020273,2]
[323777491,1714283458884,-151.0,0.00020273,2]
[323777492,1714283458894,-1601.89,0.00020273,2]
[323777493,1714283458903,-664.66,0.00020273,2]
[323777494,1714283458912,-586.57,0.00020273,2]
[323777495,1714283458921,-1143.59,0.00020273,2]
[323777496,1714283458931,-511.2201574,0.00020273,2]
[323777497,1714283458940,-939.61,0.00020273,2]
[323777498,1714283458950,-1528.14,0.00020273,2]
[323777499,1714283458959,-533.65,0.00020273,2]
[323777500,1714283458968,-1324.6,0.00020273,2]
[323777501,1714283458977,-500.0,0.00020273,2]
[323777502,1714283458986,-500.0,0.00020273,2]
[323777503,1714283458995,-500.0,0.00020273,2]
[323777504,1714283459005,-526.44,0.00020273,2]
[323777505,1714283459014,-500.0,0.00020273,2]
[323777506,1714283459023,-999.93,0.00020273,2]
[323777507,1714283459032,-500.0,0.00020273,2]
[323777508,1714283459041,-577.9,0.00020273,2]
[323777509,1714283459050,-719.84,0.00020273,2]
[323777510,1714283459059,-558.41,0.00020273,2]
[323777511,1714283459068,-500.0,0.00020273,2]
[323777512,1714283459077,-500.0,0.00020273,2]
[323777513,1714283459088,-554.6,0.00020273,2]
[323777514,1714283459097,-1384.25,0.00020273,2]
[323777515,1714283459106,-500.0,0.00020273,2]
[323777516,1714283459116,-524.60184308,0.00020273,2]
[323777517,1714283459128,-717.48,0.00020273,2]
[323777518,1714283459137,-500.0,0.00020273,2]
[323777519,1714283459147,-500.0,0.00020273,2]
[323777520,1714283459158,-500.0,0.00020273,2]
[323777521,1714283459167,-500.0,0.00020273,2]
[323777522,1714283459176,-500.0,0.00020273,2]
[323777523,1714283459185,-1411.65,0.00020273,2]
[323777524,1714283459195,-559.73,0.00020273,2]
[323777525,1714283459204,-772.51,0.00020273,2]
[323777526,1714283459213,-582.46,0.00020273,2]
[323777527,1714283459223,-500.0,0.00020273,2]
[323777528,1714283459233,-660.07,0.00020273,2]
[323777529,1714283459243,-500.0,0.00020273,2]
[323777530,1714283459253,-500.0,0.00020273,2]
[323777531,1714283459262,-666.64,0.00020273,2]
[323777532,1714283459273,-798.17,0.00020273,2]
[323777533,1714283459282,-623.71,0.00020273,2]
[323777534,1714283459292,-500.0,0.00020273,2]
[323777535,1714283459302,-500.0,0.00020273,2]
[323777536,1714283459312,-500.0,0.00020273,2]
[323777537,1714283459321,-500.0,0.00020273,2]
[323777538,1714283459331,-500.0,0.00020273,2]
[323777539,1714283459342,-1150.79,0.00020273,2]
[323777540,1714283459351,-500.0,0.00020273,2]
[323777541,1714283459361,-500.0,0.00020273,2]
[323777542,1714283459370,-500.0,0.00020273,2]
[323777543,1714283459379,-500.0,0.00020273,2]
[323777544,1714283459389,-500.0,0.00020273,2]
[323777545,1714283459399,-773.26,0.00020273,2]
[323777546,1714283459408,-1636.4,0.00020273,2]
[323777547,1714283459418,-500.0,0.00020273,2]
[323777548,1714283459428,-603.53,0.00020273,2]
[323777549,1714283459437,-510.33,0.00020273,2]
[323777550,1714283459447,-500.0,0.00020273,2]
[323777551,1714283459456,-1019.04,0.00020273,2]
[323777552,1714283459466,-500.0,0.00020273,2]
[323777553,1714283459475,-1525.39,0.00020273,2]
[323777554,1714283459485,-500.0,0.00020273,2]
[323777555,1714283459494,-500.0,0.00020273,2]
[323777556,1714283459504,-500.0,0.00020273,2]
[323777557,1714283459515,-419.668711,0.00020273,2]
[323777558,1714283459526,-500.0,0.00020273,2]
[323777559,1714283459535,-1302.78,0.00020273,2]
[323777560,1714283459544,-419.668711,0.00020273,2]
[323777561,1714283459555,-1312.44,0.00020273,2]
[323777562,1714283459564,-1079.0,0.00020273,2]
[323777563,1714283459573,-775.07,0.00020273,2]
[323777564,1714283459583,-301.420476,0.00020273,2]
[323777565,1714283459594,-500.0,0.00020273,2]
[323777566,1714283459604,-500.0,0.00020273,2]
[323777567,1714283459613,-500.0,0.00020273,2]
[323777568,1714283459623,-500.0,0.00020273,2]
[323777569,1714283459632,-719.47,0.00020273,2]
[323777570,1714283459642,-500.0,0.00020273,2]
[323777571,1714283459651,-1051.3,0.00020273,2]
[323777572,1714283459660,-500.0,0.00020273,2]
[323777573,1714283459670,-500.0,0.00020273,2]
[323777574,1714283459679,-500.0,0.00020273,2]
[323777575,1714283459688,-2698.51,0.00020273,2]
[323777576,1714283459697,-541.81,0.00020273,2]
[323777577,1714283459706,-580.73,0.00020273,2]
[323777578,1714283459716,-626.55,0.00020273,2]
[323777579,1714283459725,-514.36,0.00020273,2]
[323777580,1714283459734,-500.0,0.00020273,2]
[323777581,1714283459743,-1932.54,0.00020273,2]
[323777582,1714283459753,-500.0,0.00020273,2]
[323777583,1714283459762,-500.0,0.00020273,2]
[323777584,1714283459771,-500.0,0.00020273,2]
[323777585,1714283459781,-633.99,0.00020273,2]
[323777586,1714283459790,-500.0,0.00020273,2]
[323777587,1714283459799,-752.89,0.00020273,2]
[323777588,1714283459808,-754.18,0.00020273,2]
[323777589,1714283459818,-500.0,0.00020273,2]
[323777590,1714283459829,-500.0,0.00020273,2]
[323777591,1714283459842,-500.0,0.00020273,2]
[323777592,1714283459850,-632.08,0.00020273,2]
[323777593,1714283459862,-521.35,0.00020273,2]
[323777594,1714283459872,-500.0,0.00020273,2]
[323777595,1714283459881,-500.0,0.00020273,2]
[323777596,1714283459890,-922.16,0.00020273,2]
[323777597,1714283459899,-505.31613103,0.00020273,2]
[323777598,1714283459909,-507.70734859,0.00020273,2]
[323777599,1714283459918,-501.06253132,0.00020273,2]
[323777600,1714283459927,-500.0,0.00020273,2]
[323777601,1714283459937,-500.0,0.00020273,2]
[323777602,1714283459946,-1308.52,0.00020273,2]
[323777603,1714283459956,-556.35,0.00020273,2]
[323777604,1714283459965,-500.0,0.00020273,2]
[323777605,1714283459975,-500.0,0.00020273,2]
[323777606,1714283459985,-363.14005,0.00020273,2]
[323777607,1714283459994,-500.0,0.00020273,2]
[323777608,1714283460003,-363.14005,0.00020273,2]
[323777609,1714283460012,-500.0,0.00020273,2]
[323777610,1714283460021,-1638.18,0.00020273,2]
[323777611,1714283460031,-500.0,0.00020273,2]
[323777612,1714283460040,-168.906041,0.00020273,2]
[323777613,1714283460050,-500.0,0.00020273,2]
[323777614,1714283460059,-1141.84,0.00020273,2]
[323777615,1714283460068,-509.21132089,0.00020273,2]
[323777616,1714283460078,-500.0,0.00020273,2]
[323777617,1714283460089,-500.0,0.00020273,2]
[323777618,1714283460098,-500.0,0.00020273,2]
[323777619,1714283460108,-501.18559908,0.00020273,2]
[323777620,1714283460117,-1714.97,0.00020273,2]
[323777621,1714283460127,-656.81,0.00020273,2]
[323777622,1714283460136,-552.39,0.00020273,2]
[323777623,1714283460146,-500.0,0.00020273,2]
[323777624,1714283460157,-500.0,0.00020273,2]
[323777625,1714283460166,-1130.88,0.00020273,2]
[323777626,1714283460176,-540.67,0.00020273,2]
[323777627,1714283460185,-500.0,0.00020273,2]
[323777628,1714283460194,-500.0,0.00020273,2]
[323777629,1714283460204,-500.0,0.00020273,2]
[323777630,1714283460213,-500.0,0.00020273,2]
[323777631,1714283460223,-500.0,0.00020273,2]
[323777632,1714283460232,-500.0,0.00020273,2]
[323777633,1714283460242,-581.15,0.00020273,2]
[323777634,1714283460251,-808.99,0.00020273,2]
[323777635,1714283460261,-827.8,0.00020273,2]
[323777636,1714283460271,-500.0,0.00020273,2]
[323777637,1714283460280,-166.99,0.00020299,2]
[323777638,1714283460290,-500.0,0.00020354,2]
[323777639,1714283460299,-4988.73,0.00020354,2]
[323777640,1714283460308,-1340.07171355,0.00020408,2]
[323777641,1714283460318,-7591.07,0.00020408,2]
[323777642,1714283460328,-500.0,0.00020409,2]
[323777643,1714283460338,-500.0,0.00020409,2]
[323777644,1714283460347,-500.0,0.00020409,2]
[323777645,1714283460357,-4988.73,0.00020409,2]
[323777646,1714283460366,-500.0,0.0002041,2]
[323777647,1714283460375,-500.0,0.0002041,2]
[323777648,1714283460385,-502.0226179,0.0002041,2]
[323777649,1714283460394,-502.38436556,0.0002041,2]
[323777650,1714283460404,-500.31959386,0.0002041,2]
[323777651,1714283460414,-500.0,0.0002041,2]
[323777652,1714283460424,-500.0,0.0002041,2]
[323777653,1714283460434,-500.0,0.0002041,2]
[323777654,1714283460444,-500.0,0.0002041,2]
[323777655,1714283460454,-500.0,0.0002041,2]
[323777656,1714283460464,-500.0,0.0002041,2]
[323777657,1714283460474,-500.0,0.0002041,2]
[323777658,1714283460483,-500.0,0.0002041,2]
[323777659,1714283460493,-500.0,0.0002041,2]
[323777660,1714283460504,-500.0,0.0002041,2]
[323777661,1714283460516,-500.0,0.0002041,2]
[323777662,1714283460526,-500.93272789,0.0002041,2]
[323777663,1714283460536,-500.0,0.0002041,2]
[323777664,1714283460548,-500.0,0.0002041,2]
[323777665,1714283460560,-210.50140879,0.0002041,2]
[323777666,1714283460571,-500.0,0.0002041,2]